fUST/lending_fUST_20251017
["ID","MTS","AMOUNT","RATE_DAILY","PERIOD"]
[391612350,1760706643279,-1003.91128656,0.00031921,5]
[391612352,1760706643289,-151.0,0.00031921,30]
[391612354,1760706643299,-151.0,0.00031921,30]
[391612356,1760706643308,-154.222229,0.00031921,30]
[391612358,1760706643318,-150.97,0.00031928,15]
[391612360,1760706643327,-887.92,0.00031958,3]
[391612362,1760706643336,-443.96,0.00031958,3]
[391612364,1760706643346,-618.47380045,0.00031994,5]
[391612366,1760706643355,-500.0,0.00031994,5]
[391612368,1760706643365,-500.0,0.00031994,5]
[391612370,1760706643375,-500.0,0.00031994,5]
[391612372,1760706643384,-1250.0,0.00031994,5]
[391612374,1760706643393,-1000.0,0.00032021,5]
[391612376,1760706643402,-1000.0,0.00032021,5]
[391612378,1760706643412,-1000.0,0.00032021,5]
[391612380,1760706643421,-1000.0,0.00032021,5]
[391612382,1760706643430,-1000.0,0.00032021,5]
[391612384,1760706643439,-502.00423787,0.00032021,5]
[391612386,1760706643448,-1000.0,0.00032021,5]
[391612388,1760706643457,-460.77725085,0.00032021,5]
[391612390,1760706643467,-1001.13067611,0.00032021,5]
[391612392,1760706643476,-419.711266,0.00032021,30]
[391612394,1760706643485,-419.711266,0.00032021,30]
[391612396,1760706643495,-419.711266,0.00032021,30]
[391612398,1760706643504,-419.711266,0.00032021,30]
[391612400,1760706643513,-151.0,0.00032021,30]
[391612402,1760706643522,-151.0,0.00032021,30]
[391612404,1760706643532,-150.97,0.00032028,15]
[391612406,1760706643541,-893.61,0.00032054,5]
[391612408,1760706643550,-6153.04,0.00032054,5]
[391612410,1760706643560,-523.99,0.00032054,5]
[391612412,1760706643569,-500.0,0.00032054,5]
[391612414,1760706643578,-575.75787932,0.00032054,5]
[391612416,1760706643587,-833.98,0.00032054,5]
[391612418,1760706643597,-833.33,0.00032054,5]
[391612421,1760706643606,-656.54,0.00032054,5]
[391612423,1760706643615,-500.0,0.00032054,5]
[391612425,1760706643624,-500.0,0.00032054,5]
[391612427,1760706643633,-500.0,0.00032054,5]
[391612430,1760706643643,-623.69,0.00032054,5]
[391612431,1760706643652,-500.0,0.00032054,5]
[391612433,1760706643661,-500.0,0.00032054,5]
[391612435,1760706643670,-300.76700342,0.00032054,5]
[391612438,1760706643679,-500.0,0.00032054,2]
[391612440,1760706643688,-908.48,0.00032054,5]
[391612441,1760706643698,-500.0,0.00032054,5]
[391612444,1760706643707,-665.48,0.00032054,5]
[391612445,1760706643716,-500.0,0.00032054,5]
[391612449,1760706643725,-1068.82,0.00032054,5]
[391612451,1760706643734,-500.0,0.00032054,5]
[391612454,1760706643744,-500.0,0.00032054,5]
[391612456,1760706643753,-500.0,0.00032054,5]
[391612458,1760706643762,-2609.4,0.00032054,5]
[391612460,1760706643771,-500.0,0.00032054,5]
[391612462,1760706643781,-402.8237446,0.00032054,5]
[391612464,1760706643790,-500.0,0.00032054,5]
[391612466,1760706643799,-530.48,0.00032054,5]
[391612469,1760706643808,-500.0,0.00032054,5]
[391612470,1760706643818,-673.78,0.00032054,5]
[391612473,1760706643827,-500.0,0.00032054,5]
[391612474,1760706643837,-586.61,0.00032054,5]
[391612477,1760706643846,-500.0,0.00032054,5]
[391612478,1760706643855,-500.0,0.00032054,5]
[391612480,1760706643864,-829.75663139,0.00032054,2]
[391612482,1760706643873,-6178.77,0.00032054,5]
[391612484,1760706643883,-500.0,0.00032054,5]
[391612486,1760706643892,-500.0,0.00032054,5]
[391612488,1760706643901,-500.0,0.00032054,5]
[391612490,1760706643910,-1018.98,0.00032054,5]
[391612493,1760706643924,-500.0,0.00032054,5]
[391612495,1760706643933,-737.07,0.00032054,5]
[391612497,1760706643942,-745.77,0.00032054,5]
[391612506,1760706644024,-500.0,0.00032054,5]
[391612508,1760706644034,-500.0,0.00032054,5]
[391612510,1760706644044,-500.0,0.00032054,3]
[391612512,1760706644055,-360.0,0.00032077,2]
[391612514,1760706644064,-2719.37003951,0.00032088,2]
[391612516,1760706644073,-150.97,0.00032128,15]
[391612518,1760706644082,-150.97,0.00032228,15]
[391612520,1760706644092,-500.0,0.00032268,5]
[391612521,1760706644101,-500.0,0.00032268,5]
[391612524,1760706644111,-169.94,0.00032268,5]
[391612526,1760706644120,-1250.0,0.00032268,5]
[391612527,1760706644130,-150.97,0.00032328,15]
[391612529,1760706644139,-893.61,0.00032328,5]
[391612531,1760706644148,-6153.04,0.00032328,5]
[391612533,1760706644157,-523.99,0.00032328,5]
[391612535,1760706644166,-500.0,0.00032328,5]
[391612537,1760706644176,-833.98,0.00032328,5]
[391612539,1760706644186,-833.33,0.00032328,5]
[391612541,1760706644196,-656.54,0.00032328,5]
[391612543,1760706644205,-500.0,0.00032328,5]
[391612545,1760706644214,-500.0,0.00032328,5]
[391612547,1760706644223,-500.0,0.00032328,5]
[391612549,1760706644233,-623.69,0.00032328,5]
[391612551,1760706644242,-500.0,0.00032328,5]
[391612553,1760706644251,-500.0,0.00032328,5]
[391612555,1760706644261,-500.0,0.00032328,2]
[391612557,1760706644270,-908.48,0.00032328,5]
[391612559,1760706644279,-500.0,0.00032328,5]
[391612561,1760706644289,-665.48,0.00032328,5]
[391612563,1760706644298,-500.0,0.00032328,5]
[391612565,1760706644307,-1068.82,0.00032328,5]
[391612567,1760706644317,-500.0,0.00032328,5]
[391612569,1760706644326,-500.0,0.00032328,5]
[391612571,1760706644335,-500.0,0.00032328,5]
[391612573,1760706644345,-2609.4,0.00032328,5]
[391612575,1760706644354,-500.0,0.00032328,5]
[391612577,1760706644363,-500.0,0.00032328,5]
[391612579,1760706644373,-530.48,0.00032328,5]
[391612581,1760706644382,-500.0,0.00032328,5]
[391612583,1760706644391,-673.78,0.00032328,5]
[391612585,1760706644400,-500.0,0.00032328,5]
[391612587,1760706644409,-586.61,0.00032328,5]
[391612589,1760706644419,-500.0,0.00032328,5]
[391612591,1760706644428,-207.50604265,0.00032328,5]
[391612593,1760706644438,-6178.77,0.00032328,5]
[391612596,1760706644448,-500.0,0.00032328,5]
[391612597,1760706644457,-500.0,0.00032328,5]
[391612599,1760706644467,-500.0,0.00032328,5]
[391612601,1760706644477,-1018.98,0.00032328,5]
[391612604,1760706644488,-500.0,0.00032328,5]
[391612605,1760706644497,-737.07,0.00032328,5]
[391612608,1760706644506,-745.77,0.00032328,5]
[391612610,1760706644515,-615.8013253,0.00032328,5]
[391612611,1760706644525,-500.0,0.00032328,5]
[391612614,1760706644534,-500.0,0.00032328,3]
[391612615,1760706644544,-420.0,0.00032332,2]
[391612617,1760706644553,-2839.32192169,0.0003236,2]
[391612620,1760706644562,-500.0,0.00032367,5]
[391612622,1760706644572,-1500.0,0.00032368,5]
[391612623,1760706644581,-1500.0,0.00032368,5]
[391612625,1760706644591,-1500.0,0.00032368,5]
[391612627,1760706644600,-1500.0,0.00032368,5]
[391612629,1760706644610,-237.319878,0.000324,15]
[391612632,1760706644620,-151.0,0.000324,11]
[391612633,1760706644629,-150.97,0.00032428,15]
[391612635,1760706644639,-506.98259656,0.00032468,5]
[391612638,1760706644648,-224.66244484,0.00032468,5]
[391612640,1760706644657,-1007.01777955,0.00032468,5]
[391612642,1760706644667,-150.97,0.00032528,15]
[391612644,1760706644676,-500.0,0.00032542,5]
[391612646,1760706644685,-307.97205573,0.00032542,5]
[391612648,1760706644696,-1250.0,0.00032542,5]
[391612650,1760706644705,-1506.96873183,0.00032568,5]
[391612652,1760706644714,-1500.0,0.00032568,5]
[391612654,1760706644725,-1500.0,0.00032568,5]
[391612656,1760706644734,-1500.0,0.00032568,5]
[391612658,1760706644743,-511.46137272,0.00032568,5]
[391612660,1760706644752,-1505.49913736,0.00032568,5]
[391612662,1760706644762,-163.2444,0.00032598,2]
[391612664,1760706644771,-893.61,0.00032602,5]
[391612666,1760706644780,-6153.04,0.00032602,5]
[391612667,1760706644789,-523.99,0.00032602,5]
[391612669,1760706644799,-500.0,0.00032602,5]
[391612672,1760706644808,-833.98,0.00032602,5]
[391612674,1760706644818,-833.33,0.00032602,5]
[391612676,1760706644827,-656.54,0.00032602,5]
[391612678,1760706644837,-500.0,0.00032602,5]
[391612680,1760706644846,-500.0,0.00032602,5]
[391612682,1760706644855,-500.0,0.00032602,5]
[391612683,1760706644865,-623.69,0.00032602,5]
[391612685,1760706644873,-500.0,0.00032602,5]
[391612687,1760706644883,-500.0,0.00032602,5]
[391612689,1760706644892,-399.402123,0.00032602,30]
[391612691,1760706644902,-399.402123,0.00032602,30]
[391612693,1760706644911,-399.402123,0.00032602,30]
[391612696,1760706644924,-399.402123,0.00032602,30]
[391612697,1760706644934,-500.0,0.00032602,2]
[391612700,1760706644943,-908.48,0.00032602,5]
[391612701,1760706644952,-500.0,0.00032602,5]
[391612704,1760706644963,-220.554941,0.00032602,30]
[391612706,1760706644976,-665.48,0.00032602,5]
[391612708,1760706644985,-500.0,0.00032602,5]
[391612709,1760706644993,-1068.82,0.00032602,5]
[391612712,1760706645005,-157.442968,0.00032602,30]
[391612713,1760706645016,-157.442968,0.00032602,30]
[391612715,1760706645025,-157.442968,0.00032602,30]
[391612717,1760706645035,-157.442968,0.00032602,30]
[391612719,1760706645044,-500.0,0.00032602,5]
[391612722,1760706645055,-500.0,0.00032602,5]
[391612723,1760706645064,-500.0,0.00032602,5]
[391612726,1760706645074,-2609.4,0.00032602,5]
[391612728,1760706645084,-500.0,0.00032602,5]
[391612730,1760706645094,-500.0,0.00032602,5]
[391612732,1760706645103,-530.48,0.00032602,5]
[391612733,1760706645112,-500.0,0.00032602,5]
[391612735,1760706645122,-673.78,0.00032602,5]
[391612738,1760706645131,-500.0,0.00032602,5]
[391612740,1760706645141,-586.61,0.00032602,5]
[391612742,1760706645151,-500.0,0.00032602,5]
[391612744,1760706645160,-6178.77,0.00032602,5]
[391612746,1760706645170,-500.0,0.00032602,5]
[391612748,1760706645179,-500.0,0.00032602,5]
[391612750,1760706645188,-500.0,0.00032602,5]
[391612752,1760706645197,-1018.98,0.00032602,5]
[391612753,1760706645207,-500.0,0.00032602,5]
[391612756,1760706645219,-737.07,0.00032602,5]
[391612758,1760706645228,-745.77,0.00032602,5]
[391612760,1760706645238,-500.0,0.00032602,5]
[391612761,1760706645247,-500.0,0.00032602,3]
[391612763,1760706645257,-163.2444,0.00032607,2]
[391612766,1760706645267,-204.0555,0.00032607,2]
[391612767,1760706645276,-272.074,0.00032607,2]
[391612769,1760706645286,-460.0,0.00032625,2]
[391612772,1760706645295,-150.97,0.00032628,15]
[391612773,1760706645305,-163.2444,0.00032698,2]
[391612776,1760706645315,-151.0,0.000327,14]
[391612777,1760706645324,-163.2444,0.00032707,2]
[391612779,1760706645334,-204.0555,0.00032707,2]
[391612782,1760706645343,-272.074,0.00032707,2]
[391612784,1760706645353,-150.97,0.00032728,15]
[391612786,1760706645362,-163.2444,0.00032798,2]
[391612788,1760706645371,-163.2444,0.00032807,2]
[391612790,1760706645380,-272.074,0.00032807,2]
[391612791,1760706645389,-500.0,0.00032816,5]
[391612794,1760706645399,-1250.0,0.00032816,5]
[391612795,1760706645408,-150.97,0.00032828,15]
[391612797,1760706645418,-2002.70000781,0.0003285,2]
[391612800,1760706645428,-893.61,0.00032876,5]
[391612802,1760706645437,-6153.04,0.00032876,5]
[391612804,1760706645447,-523.99,0.00032876,5]
[391612805,1760706645456,-500.0,0.00032876,5]
[391612808,1760706645466,-833.98,0.00032876,5]
[391612809,1760706645475,-833.33,0.00032876,5]
[391612812,1760706645485,-656.54,0.00032876,5]
[391612813,1760706645494,-500.0,0.00032876,5]
[391612816,1760706645504,-500.0,0.00032876,5]
[391612817,1760706645513,-500.0,0.00032876,5]
[391612820,1760706645523,-623.69,0.00032876,5]
[391612822,1760706645533,-500.0,0.00032876,5]
[391612824,1760706645542,-500.0,0.00032876,5]
[391612825,1760706645551,-500.0,0.00032876,2]
[391612827,1760706645561,-908.48,0.00032876,5]
[391612829,1760706645570,-500.0,0.00032876,5]
[391612831,1760706645580,-665.48,0.00032876,5]
[391612833,1760706645589,-500.0,0.00032876,5]
[391612836,1760706645599,-1068.82,0.00032876,5]
[391612838,1760706645611,-500.0,0.00032876,5]
[391612840,1760706645620,-500.0,0.00032876,5]
[391612842,1760706645629,-500.0,0.00032876,5]
[391612844,1760706645639,-2609.4,0.00032876,5]
[391612846,1760706645648,-540.72675753,0.00032876,5]
[391612854,1760706645725,-500.0,0.00032876,5]
[391612856,1760706645735,-530.48,0.00032876,5]
[391612859,1760706645748,-500.0,0.00032876,5]
[391612861,1760706645758,-673.78,0.00032876,5]
[391612862,1760706645767,-500.0,0.00032876,5]
[391612864,1760706645777,-586.61,0.00032876,5]
[391612867,1760706645787,-500.0,0.00032876,5]
[391612869,1760706645795,-6178.77,0.00032876,5]
[391612870,1760706645804,-2161.07,0.00032876,120]
[391612872,1760706645815,-173.73,0.00032876,5]
[391612874,1760706645825,-500.0,0.00032876,5]
[391612877,1760706645835,-500.0,0.00032876,5]
[391612878,1760706645844,-1018.98,0.00032876,5]
[391612880,1760706645854,-500.0,0.00032876,5]
[391612883,1760706645863,-737.07,0.00032876,5]
[391612885,1760706645873,-745.77,0.00032876,5]
[391612886,1760706645882,-500.0,0.00032876,5]
[391612888,1760706645891,-500.0,0.00032876,3]
[391612890,1760706645901,-163.2444,0.00032898,2]
[391612892,1760706645910,-151.0,0.000329,17]
[391612894,1760706645921,-163.2444,0.00032907,2]
[391612896,1760706645932,-1000.0,0.00032915,5]
[391612898,1760706645942,-2000.0,0.00032916,5]
[391612900,1760706645952,-450.1786,0.00032916,5]
[391612902,1760706645961,-2000.0,0.00032916,5]
[391612904,1760706645973,-775.90838956,0.00032916,5]
[391612906,1760706645983,-150.97,0.00032928,60]
[391612908,1760706645992,-178.37,0.00032964,120]
[391612910,1760706646002,-2839.32192169,0.00032979,2]
[391612912,1760706646011,-163.2444,0.00032998,2]
[391612914,1760706646021,-521000.0,0.00033,5]
[391612916,1760706646030,-159.0,0.00033,30]
[391612918,1760706646039,-159.0,0.00033,30]
[391612920,1760706646048,-163.2444,0.00033007,2]
[391612922,1760706646058,-150.97,0.00033028,60]
[391612924,1760706646068,-286.1472086,0.0003309,5]
[391612926,1760706646077,-1250.0,0.0003309,5]
[391612928,1760706646087,-160.83984091,0.00033116,5]
[391612930,1760706646097,-512.4240118,0.00033116,5]
[391612932,1760706646106,-1500.0,0.00033116,5]
[391612933,1760706646116,-150.97,0.00033128,60]
[391612934,1760706646126,-893.61,0.0003315,5]
[391612936,1760706646135,-6153.04,0.0003315,5]
[391612938,1760706646145,-523.99,0.0003315,5]
[391612940,1760706646154,-500.0,0.0003315,5]
[391612942,1760706646163,-833.98,0.0003315,5]
[391612946,1760706646173,-833.33,0.0003315,5]
[391612948,1760706646183,-656.54,0.0003315,5]
[391612950,1760706646194,-318.0261609,0.0003315,5]
[391612953,1760706646206,-500.0,0.0003315,5]
[391612955,1760706646215,-500.0,0.0003315,5]
[391612956,1760706646225,-623.69,0.0003315,5]
[391612958,1760706646235,-498.5,0.0003315,5]
[391612960,1760706646245,-512.01912813,0.0003315,2]
[391612962,1760706646254,-908.48,0.0003315,5]
[391612964,1760706646264,-500.0,0.0003315,5]
[391612966,1760706646274,-665.48,0.0003315,5]
[391612968,1760706646283,-500.0,0.0003315,5]
[391612970,1760706646294,-1068.82,0.0003315,5]
[391612972,1760706646303,-500.0,0.0003315,5]
[391612974,1760706646313,-566.99881915,0.0003315,5]
[391612976,1760706646323,-500.0,0.0003315,5]
[391612978,1760706646332,-2609.4,0.0003315,5]
[391612980,1760706646342,-500.0,0.0003315,5]
[391612982,1760706646351,-530.48,0.0003315,5]
[391612984,1760706646361,-500.0,0.0003315,5]
[391612986,1760706646370,-673.78,0.0003315,5]
[391612988,1760706646380,-299.91,0.0003315,5]
[391612990,1760706646389,-586.61,0.0003315,5]
[391612992,1760706646398,-500.0,0.0003315,5]
[391612994,1760706646407,-6178.77,0.0003315,5]
[391612996,1760706646416,-500.0,0.0003315,5]
[391612998,1760706646426,-419.711266,0.0003315,30]
[391613000,1760706646436,-500.0,0.0003315,5]
[391613002,1760706646445,-419.711266,0.0003315,30]
[391613004,1760706646455,-1018.98,0.0003315,5]
[391613006,1760706646464,-419.711266,0.0003315,30]
[391613007,1760706646474,-419.711266,0.0003315,30]
[391613009,1760706646483,-151.0,0.0003315,30]
[391613011,1760706646493,-500.0,0.0003315,5]
[391613013,1760706646502,-737.07,0.0003315,5]
[391613015,1760706646511,-745.77,0.0003315,5]
[391613017,1760706646521,-500.0,0.0003315,5]
[391613018,1760706646530,-500.0,0.0003315,3]
[391613020,1760706646540,-151.0,0.0003315,30]
[391613022,1760706646549,-157.700731,0.0003315,30]
[391613024,1760706646559,-560.0,0.00033173,2]
[391613026,1760706646569,-151.0,0.000332,10]
[391613028,1760706646578,-500.0,0.00033227,5]
[391613030,1760706646587,-150.97,0.00033228,60]
[391613032,1760706646596,-1650.886769,0.000333,13]
[391613034,1760706646605,-250.0,0.00033304,2]
[391613036,1760706646615,-150.97,0.00033328,60]
[391613038,1760706646624,-1250.0,0.00033364,5]
[391613039,1760706646633,-151.0,0.000334,11]
[391613041,1760706646643,-893.61,0.00033424,5]
[391613043,1760706646652,-6153.04,0.00033424,5]
[391613045,1760706646661,-523.99,0.00033424,5]
[391613047,1760706646671,-500.0,0.00033424,5]
[391613049,1760706646680,-833.98,0.00033424,5]
[391613051,1760706646689,-833.33,0.00033424,5]
[391613053,1760706646699,-656.54,0.00033424,5]
[391613055,1760706646708,-500.0,0.00033424,5]
[391613057,1760706646719,-500.0,0.00033424,5]
[391613058,1760706646728,-623.69,0.00033424,5]
[391613060,1760706646738,-908.48,0.00033424,5]
[391613062,1760706646747,-500.0,0.00033424,5]
[391613064,1760706646756,-665.48,0.00033424,5]
[391613066,1760706646766,-500.0,0.00033424,5]
[391613068,1760706646775,-1068.82,0.00033424,5]
[391613070,1760706646784,-500.0,0.00033424,5]
[391613072,1760706646793,-500.0,0.00033424,5]
[391613074,1760706646802,-2609.4,0.00033424,5]
[391613076,1760706646811,-500.0,0.00033424,5]
[391613078,1760706646820,-530.48,0.00033424,5]
[391613079,1760706646830,-500.0,0.00033424,5]
[391613080,1760706646839,-209.994761,0.00033424,30]
[391613081,1760706646848,-673.78,0.00033424,5]
[391613082,1760706646857,-586.61,0.00033424,5]
[391613083,1760706646867,-500.0,0.00033424,5]
[391613084,1760706646876,-6178.77,0.00033424,5]
[391613085,1760706646886,-151.0,0.00033424,30]
[391613086,1760706646895,-151.0,0.00033424,30]
[391613087,1760706646904,-500.0,0.00033424,5]
[391613088,1760706646915,-500.0,0.00033424,5]
[391613089,1760706646928,-1018.98,0.00033424,5]
[391613090,1760706646942,-502.6625881,0.00033424,5]
[391613091,1760706646951,-737.07,0.00033424,5]
[391613092,1760706646963,-745.77,0.00033424,5]
[391613093,1760706646974,-500.0,0.00033424,5]
[391613094,1760706646984,-174.36,0.00033424,3]
[391613096,1760706646994,-150.97,0.00033428,60]
[391613097,1760706647004,-151.0,0.00033441,30]
[391613098,1760706647013,-151.0,0.00033441,30]
[391613099,1760706647023,-151.0,0.00033441,2]
[391613101,1760706647032,-151.0,0.00033441,30]
[391613102,1760706647041,-151.0,0.0003346,30]
[391613103,1760706647051,-151.0,0.0003346,30]
[391613104,1760706647060,-151.0,0.0003346,2]
[391613105,1760706647073,-186.510713,0.0003346,30]
[391613106,1760706647082,-399.402123,0.0003346,30]
[391613107,1760706647092,-399.402123,0.0003346,30]
[391613109,1760706647102,-399.402123,0.0003346,30]
[391613111,1760706647111,-399.402123,0.0003346,30]
[391613113,1760706647121,-157.442968,0.0003346,30]
[391613115,1760706647131,-157.442968,0.0003346,30]
[391613117,1760706647140,-157.442968,0.0003346,30]
[391613119,1760706647149,-157.442968,0.0003346,30]
[391613121,1760706647158,-151.0,0.0003346,30]
[391613123,1760706647168,-151.0,0.0003346,30]
[391613125,1760706647178,-158.94608,0.0003346,7]
[391613127,1760706647187,-419.711266,0.0003346,30]
[391613129,1760706647198,-419.711266,0.0003346,30]
[391613131,1760706647208,-419.711266,0.0003346,30]
[391613133,1760706647217,-419.711266,0.0003346,30]
[391613142,1760706647296,-73310.60121662,0.0003346,2]
[391613151,1760706647379,-420.0,0.0003041,2]
[391613153,1760706647389,-251.77936835,0.0003346,2]
[391613155,1760706647400,-5618.83711693,0.0003346,2]
[391613168,1760706647512,-183.146012,0.00031921,30]
[391613170,1760706647521,-183.146012,0.00031921,30]
[391613172,1760706647531,-159.0,0.00033,30]
[391613173,1760706647539,-183.146012,0.0003315,30]
[391613175,1760706647547,-183.146012,0.0003315,30]
[391613177,1760706647555,-183.146012,0.0003346,30]
[391613179,1760706647563,-183.146012,0.0003346,30]
[391613182,1760706647572,-30867.96978492,0.0003346,2]
[391613193,1760706647662,-183.146012,0.00031921,30]
[391613195,1760706647671,-183.146012,0.00031921,30]
[391613197,1760706647679,-183.146012,0.0003315,30]
[391613199,1760706647686,-183.146012,0.0003315,30]
[391613201,1760706647696,-183.146012,0.0003346,30]
[391613203,1760706647704,-183.146012,0.0003346,30]
[391613205,1760706647711,-4439.20476961,0.0003346,2]
[391613207,1760706647723,-255511.60774357,0.0003346,2]
[391613209,1760706647732,-211.79380106,0.00033463,5]
[391613211,1760706647738,-237.319878,0.00033463,15]
[391613212,1760706647745,-2500.0,0.00033464,5]
[391613214,1760706647751,-502.06033455,0.00033464,5]
[391613216,1760706647758,-1961.56,0.000335,2]
[391613218,1760706647767,-500.0,0.00033501,5]
[391613220,1760706647776,-150.97,0.00033528,60]
[391613221,1760706647785,-150.0,0.00033561,2]
[391613223,1760706647791,-231.0,0.00033567,7]
[391613225,1760706647799,-2719.37003951,0.00033592,2]
[391613227,1760706647806,-2839.32192169,0.00033598,2]
[391613229,1760706647814,-6216.52777587,0.00033598,2]
[391613231,1760706647823,-168.0,0.00033614,2]
[391613233,1760706647831,-1408.8776127,0.00033616,2]
[391613236,1760706647841,-150.97,0.00033628,60]
[391613238,1760706647850,-1250.0,0.00033638,5]
[391613239,1760706647857,-151.0,0.0003366,2]
[391613241,1760706647864,-198.0,0.0003366,2]
[391613243,1760706647872,-198.0,0.0003366,2]
[391613245,1760706647881,-151.0,0.0003366,2]
[391613247,1760706647891,-161.17045613,0.0003366,2]
[391613249,1760706647900,-153.03462234,0.0003366,2]
[391613251,1760706647909,-151.0,0.0003366,2]
[391613253,1760706647918,-151.0,0.0003366,2]
[391613255,1760706647931,-151.0,0.0003366,2]
[391613257,1760706647941,-151.0,0.0003366,2]
[391613259,1760706647950,-151.0,0.0003366,2]
[391613261,1760706647959,-151.77989384,0.0003366,2]
[391613263,1760706647971,-151.24075468,0.0003366,2]
[391613265,1760706647981,-151.0,0.0003366,2]
[391613267,1760706647990,-151.0,0.0003366,2]
[391613269,1760706648001,-500.0,0.0003366,2]
[391613271,1760706648010,-500.0,0.0003366,2]
[391613273,1760706648020,-151.0,0.0003366,2]
[391613275,1760706648029,-640.0,0.0003366,2]
[391613277,1760706648038,-151.9727561,0.0003366,2]
[391613279,1760706648048,-151.0,0.0003366,2]
[391613281,1760706648058,-237.319878,0.0003367,2]
[391613283,1760706648068,-306.7239762,0.00033673,2]
[391613285,1760706648078,-324.32616835,0.00033673,2]
[391613287,1760706648087,-308.76756493,0.00033673,2]
[391613289,1760706648097,-151.0,0.00033677,30]
[391613291,1760706648106,-196.087277,0.00033677,30]
[391613292,1760706648115,-151.0,0.00033677,2]
[391613294,1760706648124,-399.402123,0.00033678,30]
[391613296,1760706648134,-399.402123,0.00033678,30]
[391613298,1760706648143,-399.402123,0.00033678,30]
[391613300,1760706648152,-399.402123,0.00033678,30]
[391613302,1760706648162,-157.442968,0.00033678,30]
[391613304,1760706648171,-157.442968,0.00033678,30]
[391613306,1760706648181,-157.442968,0.00033678,30]
[391613308,1760706648190,-157.442968,0.00033678,30]
[391613310,1760706648199,-1000.0,0.00033678,2]
[391613312,1760706648208,-1000.0,0.00033678,2]
[391613314,1760706648218,-1000.0,0.00033678,2]
[391613316,1760706648227,-1000.0,0.00033678,2]
[391613317,1760706648237,-1000.0,0.00033678,2]
[391613319,1760706648246,-1000.0,0.00033678,2]
[391613321,1760706648255,-1000.0,0.00033678,2]
[391613323,1760706648264,-1000.0,0.00033678,2]
[391613325,1760706648273,-1069.060069,0.00033678,2]
[391613327,1760706648282,-151.0,0.00033678,30]
[391613329,1760706648292,-274.939084,0.00033678,30]
[391613331,1760706648301,-419.711266,0.00033678,30]
[391613333,1760706648311,-419.711266,0.00033678,30]
[391613335,1760706648320,-419.711266,0.00033678,30]
[391613337,1760706648329,-419.711266,0.00033678,30]
[391613339,1760706648338,-183.146012,0.00033678,30]
[391613341,1760706648347,-183.146012,0.00033678,30]
[391613343,1760706648357,-183.146012,0.00033678,30]
[391613345,1760706648366,-78761.14927581,0.00033678,2]
[391613347,1760706648377,-665.64126112,0.00033678,2]
[391617157,1760706690745,159.0,0.00027,2]
[391618203,1760706703234,160.6,0.00027,2]
[391621271,1760707170969,297.846583,0.00013699,2]
[391621272,1760707171175,297.846583,0.00020187,2]
[391621273,1760707171390,297.846583,0.00026676,2]
[391621276,1760707296605,417.15472785,0.00027002,2]
[391621326,1760707421243,-100000.0,0.00033968,30]
[391621327,1760707421267,-100000.0,0.00033968,30]
[391621328,1760707421292,-100000.0,0.00033968,30]
[391621329,1760707421318,-100000.0,0.00033968,30]